Workbook

Sheet Sheet1
A1: 2024年生产部8月接收处置记录统计表 | R1: 自产废物
A2: 废物名称 | B2: 危废代码 | C2: 形态 | D2: 上月结存 | E2: 本月接收量 | F2: 处置量及工艺 | J2: 库存量 | K2: 1#库 | L2: 2#库 | M2: 干化库 | N2: 罐区 | O2: 料坑 | R2: 废物名称 | S2: 上月结存 | T2: 本月产生量 | U2: 包数 | V2: 本月处理 | Y2: 库存 | Z2: 备注 | AA2: 存储位置
F3: 固废焚烧 | G3: 废液焚烧 | H3: 清洗大桶 | I3: 污泥干化 | K3: 1#库 | L3: 2#库 | M3: 干化库 | N3: 罐区 | O3: 料坑 | V3: 焚烧处置 | W3: 液体炉 | X3: 拉运
A4: 精馏残渣 | B4: 271-001-02 | C4: 固态 | D4: 0 | J4: =D4+E4-F4-G4-H4-I4 -> 0 | P4: =K4+L4+M4+N4+O4 -> 0 | R4: 炉渣（回转窑） | S4: 468.682 | T4: 48.92 | U4: 47 | X4: 155.725 | Y4: =S4+T4-V4-X4-W4 -> 361.877
A5: 废有机溶剂 | B5: 271-002-02 | C5: 液态 | D5: 15.321 | J5: 15.321 | L5: 15.321 | P5: 15.321 | R5: 飞灰（回转窑） | S5: 33.65 | T5: 9.83 | U5: 26 | X5: 34.76 | Y5: 8.72
A6: 过滤介质 | B6: 271-003-02 | C6: 固态 | D6: 0 | J6: 0 | P6: 0 | R6: 飞灰（废液炉） | S6: 9.375 | X6: 7.085 | Y6: 2.29
A7: 废盐 | B7: 271-005-02 | C7: 固态 | D7: 19.54 | E7: =22.74+16.3 -> 39.04 | F7: =28.28+7 -> 35.28 | J7: 23.3 | K7: 23.3 | P7: 23.3 | R7: 废油渣/泥 | S7: 0 | Y7: 0 | Z7: 精馏切水后剩下的罐底泥
A8: 实验室废液 | B8: 900-002-03 | C8: 液态 | D8: 25.841 | E8: =7.215 -> 7.215 | J8: 33.056 | L8: 33.056 | P8: 33.056 | R8: 含油污水 | S8: 0 | Y8: 0 | Z8: 蒸汽清洗过程 | AA8: 2#库
A9: 高危化学品 | B9: 900-002-03 | C9: 半固态 | D9: 0 | E9: =0.065 -> 0.065 | F9: =0.065 -> 0.065 | J9: 0 | P9: 0 | R9: 废商标 | S9: 0 | Y9: 0 | Z9: 除商标 | AA9: 2#库
A10: 一般废药品 | B10: 900-002-03 | C10: 固态 | D10: 0 | E10: =0.351+0.2 -> 0.551 | F10: =0.351 -> 0.351 | J10: 0.2 | L10: 0.2 | P10: 0.2 | R10: 废残液 | S10: 0 | Y10: 0 | Z10: 抽残液 | AA10: 2#库
A11: 磷化铝、杀虫剂 | B11: 900-003-04 | C11: 固态 | D11: 0 | E11: =0.16+0.14 -> 0.3 | J11: 0.3 | K11: 0.3 | P11: 0.3 | R11: 废渣 | S11: 0 | Y11: 0 | Z11: 清洗过程 | AA11: 2#库
A12: 废药物、药品 杀虫剂、磷化铝等 | B12: 900-003-04 | C12: 半固态 | D12: 0 | J12: 0 | P12: 0 | R12: 漆渣 | S12: 0 | Y12: 0 | Z12: 清洗过程
A13: 废盐 | B13: 263-008-04 | C13: 固态 | D13: 0 | J13: 0 | P13: 0 | R13: 污水厂污泥 | S13: 0 | Y13: 0 | Z13: 水处理后产生的污泥 | AA13: 2#库
A14: 蒸馏残液 | B14: 263-008-04 | C14: 半固态 | D14: 9.4 | J14: 9.4 | K14: 9.4 | P14: 9.4 | R14: 废清洗剂 | S14: 0 | Y14: 0 | Z14: 清洗剂清洗过程
A15: 废渣 | B15: 263-009-04 | C15: 固态 | D15: 5 | J15: 5 | K15: 5 | P15: 5
A16: 污泥 | B16: 263-011-04 | C16: 固态 | D16: 2.48 | J16: 2.48 | K16: 2.48 | P16: 2.48
A17: 废弃木材 | B17: 201-003-05 | C17: 固态 | D17: 0 | J17: 0 | P17: 0
A18: 废有机溶剂 | B18: 900-401-06 | C18: 液态 | D18: 0 | J18: 0 | P18: 0
A19: 废有机溶剂及废物 | B19: 900-402-06 | C19: 液态 | D19: 137.045 | E19: =2.474+0.1 -> 2.574 | F19: =9.98 -> 9.98 | J19: 129.639 | K19: 2.094 | L19: 127.545 | P19: 129.639
A20: 清洗剂、渗透剂包装物 | B20: 900-402-06 | C20: 固态 | D20: 0 | E20: =0.06 -> 0.06 | J20: 0.06 | L20: 0.06 | P20: 0.06
A21: 废有机溶剂 | B21: 900-404-06 | C21: 液态 | D21: 15.59 | J21: 15.59 | L21: 15.59 | P21: 15.59
A22: 定期更换的活性炭 | B22: 900-405-06 | C22: 固态 | D22: 0 | J22: 0 | P22: 0
A23: 丙烯酸甲酯聚合物 | B23: 900-407-06 | C23: 固态 | D23: 0 | J23: 0 | P23: 0
A24: 废有机溶剂 | B24: 900-407-06 | C24: 液态 | D24: 52.2451 | E24: =25.9255 -> 25.9255 | J24: 78.1706 | L24: 78.1706 | P24: 78.1706
A25: 油污水 | B25: 251-001-08 | C25: 液态 | D25: 168.24 | J25: 168.24 | L25: 168.24 | P25: 168.24
A26: 废滤芯 | B26: 251-012-08 | C26: 固态 | D26: 0 | J26: 0 | P26: 0
A27: 废溶剂油 | B27: 291-001-08 | C27: 液态 | D27: 0 | J27: 0 | P27: 0
A28: 废溶剂油 | B28: 291-001-08 | C28: 半固态 | D28: 62.94 | J28: 62.94 | K28: 62.94 | P28: 62.94
A29: 油泥、油脚 | B29: 071-001-08 | C29: 液态 | D29: 0 | J29: 0 | P29: 0
A30: 含油泥浆 | B30: 071-002-08 | C30: 液态 | D30: 1125.3 | J30: 1125.3 | N30: 1125.3 | P30: 1125.3
A31: 含油岩屑 | B31: 071-002-08 | C31: 半固态 | D31: 3114.623 | F31: =18.86+16.64+5.54 -> 41.04 | J31: 3073.583 | M31: =546.951-67.97 -> 478.981 | N31: 2594.602 | P31: 3073.583
A32: 废油泥 | B32: 900-200-08 | C32: 半固态 | D32: 0.81 | J32: 0.81 | L32: 0.81 | P32: 0.81
A33: HW08废油 | B33: 900-200-08 | C33: 液态 | D33: 13.68 | E33: =7.48+2.4 -> 9.88 | J33: 23.56 | K33: 8.28 | N33: 15.28 | P33: 23.56
A34: 油泥 | B34: 900-201-08 | C34: 液态 | D34: 3.626 | J34: 3.626 | N34: 3.626 | P34: 3.626
A35: 油泥 | B35: 900-201-08 | C35: 半固态 | D35: 0 | J35: 0 | P35: 0
A36: 废润滑油废浮渣 | B36: 900-209-08 | C36: 半固态 | D36: 0 | J36: 0 | P36: 0
A37: 水处理浮渣及污泥 | B37: 900-210-08 | C37: 半固态 | D37: 3.3 | E37: =0.68 -> 0.68 | J37: 3.98 | K37: 3.98 | P37: 3.98
A38: 废机油、含油废水 | B38: 900-210-08 | C38: 液态 | D38: 235.2 | J38: 235.2 | L38: 32.76 | N38: 202.44 | P38: 235.2
A39: 废油泥 | B39: 900-210-08 | C39: 固态 | D39: 34.6 | J39: 34.6 | L39: 34.6 | P39: 34.6
A40: 废水处理过程产废油、油泥、浮渣 | B40: 900-210-08 | C40: 液态 | D40: 1616 | I40: 1616 | J40: 0 | P40: 0
A41: 废白土 | B41: 900-213-08 | C41: 固态 | D41: 21.38 | E41: =35.06 -> 35.06 | J41: 56.44 | L41: 56.44 | P41: 56.44
A42: 废机油 | B42: 900-213-08 | C42: 液态 | D42: 1 | J42: 1 | N42: 1 | P42: 1
A43: 废矿物油 | B43: 900-214-08 | C43: 液态 | D43: 65.98565 | E43: =0.01069+10.5 -> 10.51069 | J43: 76.49634 | N43: 76.49634 | P43: 76.49634
A44: 废矿物油 | B44: 900-214-08 | C44: 半固态 | D44: 8.56 | J44: 8.56 | K44: 8 | L44: 0.56 | P44: 8.56
A45: 废矿物油 | B45: 900-217-08 | C45: 液态 | D45: 34.10185 | E45: =5+0.38+4.92 -> 10.3 | F45: =2.5+0.54 -> 3.04 | J45: 41.36185 | N45: 41.36185 | P45: 41.36185
A46: 废甘油 | B46: 900-217-08 | C46: 半固态 | D46: 0 | J46: 0 | P46: 0
A47: 废液压油 | B47: 900-218-08 | C47: 液态 | D47: 40.3708 | E47: =4.02 -> 4.02 | J47: 44.3908 | N47: 44.3908 | P47: 44.3908
A48: 废冷冻机油 | B48: 900-219-08 | C48: 液态 | D48: 11.77 | J48: 11.77 | N48: 11.77 | P48: 11.77
A49: 废矿物油与含矿物油废物 | B49: 900-220-08 | C49: 液态 | D49: 45.11833 | F49: =20+4 -> 24 | J49: 21.11833 | L49: 15.3 | N49: 5.81833 | P49: 21.11833
A50: 清罐污泥 | B50: 900-220-08 | C50: 固态 | D50: 0 | J50: 0 | P50: 0
A51: 废油泥 | B51: 900-221-08 | C51: 半固态 | D51: 0 | J51: 0 | P51: 0
A52: 废矿物油 | B52: 900-249-08 | C52: 液态 | D52: 111.7565 | E52: =5.8+1.16+2.78+7.16+1.967+1.25 -> 20.117 | F52: =5+5.6 -> 10.6 | J52: 121.2735 | N52: 121.2735 | P52: 121.2735
A53: 废矿物油、废油桶 | B53: 900-249-08 | C53: 固态 | D53: 83.743 | E53: =0.454+4.38+3.8+3.58+0.24+3.48 -> 15.934 | F53: =0.032 -> 0.032 | H53: =9.34+12.32+8.28+0.454 -> 30.394 | J53: 69.251 | K53: 16.84 | L53: 52.411 | P53: 69.251
A54: 废矿物油、油泥 | B54: 900-249-08 | C54: 半固态 | D54: 37.26 | E54: =2.74 -> 2.74 | F54: =12.82 -> 12.82 | J54: 27.18 | K54: 27.18 | P54: 27.18
A55: 废水、乳化液 | B55: 900-007-09 | C55: 液态 | D55: 217.809 | E55: =26+60+1.371+92.3+19.6+5 -> 204.271 | I55: 275.42 | J55: 146.66 | L55: 146.26 | N55: =0.4 -> 0.4 | P55: 146.66
A56: 废乳化液 | B56: 900-006-09 | C56: 液态 | D56: 135.08 | E56: =9.56+31+9.5 -> 50.06 | J56: 185.14 | L56: 185.14 | P56: 185.14
A57: 砂轮沫 | B57: 900-006-09 | C57: 固态 | D57: 0 | E57: =3.902 -> 3.902 | J57: 3.902 | L57: 3.902 | P57: 3.902
A58: 废焦油渣 | B58: 252-005-11 | C58: 固态 | D58: 0 | J58: 0 | P58: 0
A59: 煤焦油、釜残 | B59: 900-013-11 | C59: 固态 | D59: 11.2224 | J59: 11.2224 | L59: 11.2224 | P59: 11.2224
A60: 煤焦油 | B60: 900-013-11 | C60: 液态 | D60: 13 | E60: =28.58 -> 28.58 | J60: 41.58 | K60: 13 | L60: 28.58 | P60: 41.58
A61: 釜残 | B61: 900-013-11 | C61: 半固态 | D61: 225.12 | E61: =34.9+23.8+29.38+26.92+26.08 -> 141.08 | F61: =7.28+7+18 -> 32.28 | J61: 333.92 | K61: 333.92 | P61: 333.92
A62: 煤焦油 | B62: 451-003-11 | C62: 半固态 | D62: 0 | J62: 0 | P62: 0
A63: 煤焦油 | B63: 451-003-11 | C63: 液态 | D63: 82.32 | F63: =5.8 -> 5.8 | J63: 76.52 | L63: 34.02 | N63: 42.5 | P63: 76.52
A64: 焦油渣 | B64: 451-003-11 | C64: 固态 | D64: 0 | J64: 0 | P64: 0
A65: 焦油渣 | B65: 451-001-11 | C65: 固态 | D65: 0 | J65: 0 | P65: 0
A66: 漆渣 | B66: 900-250-12 | C66: 固态 | D66: 0.65 | F66: =0.65 -> 0.65 | J66: 0 | P66: 0
A67: 废涂料 | B67: 900-251-12 | C67: 液态 | D67: 0 | E67: =1.89+0.11 -> 2 | F67: =1.89 -> 1.89 | J67: 0.11 | K67: 0.11 | P67: 0.11
A68: 废彩涂液 | B68: 900-252-12 | C68: 液态 | D68: 88.48 | J68: =D68+E68-F68-G68-H68-I68 -> 88.48 | K68: 21.92 | L68: 66.56 | P68: =K68+L68+M68+N68+O68 -> 88.48
A69: 废漆渣 | B69: 900-252-12 | C69: 固态 | D69: 62.36 | E69: =7.06+7.4+3.8+6.8+2.8 -> 27.86 | F69: =14.48+15.43 -> 29.91 | J69: 60.31 | K69: 38.66 | L69: 21.65 | P69: 60.31
A70: 漆渣 | B70: 900-252-12 | C70: 半固态 | D70: 10.43 | E70: =0.1+0.181 -> 0.281 | F70: =0.1+0.181 -> 0.281 | J70: 10.43 | L70: 10.43 | P70: 10.43
A71: 废油漆 | B71: 900-256-12 | C71: 液态 | D71: 5 | E71: =0.28 -> 0.28 | J71: 5.28 | K71: 5.28 | P71: 5.28
A72: 废油漆 | B72: 900-256-12 | C72: 半固态 | D72: 0 | E72: =2.06 -> 2.06 | F72: =2.06 -> 2.06 | J72: 0 | P72: 0
A73: 油墨渣子、油漆 | B73: 900-299-12 | C73: 半固态 | D73: 0 | E73: =0.25+0.32875 -> 0.57875 | F73: =0.25+0.32875 -> 0.57875 | J73: 0 | P73: 0
A74: 硒鼓墨盒 | B74: 900-299-12 | C74: 固态 | D74: 0 | E74: =0.00064+0.17+0.18 -> 0.35064 | F74: =0.00064+0.17 -> 0.17064 | J74: 0.18 | K74: 0.18 | P74: 0.18
A75: 油漆渣 | B75: 900-299-12 | C75: 液态 | D75: 1.6 | J75: 1.6 | L75: 1.6 | P75: 1.6
A76: 废油墨 | B76: 264-011-12 | C76: 液态 | D76: 0 | J76: 0 | P76: 0
A77: 油墨渣 | B77: 264-011-12 | C77: 固态 | D77: 0 | J77: 0 | P77: 0
A78: 污泥 | B78: 264-012-12 | C78: 固态 | D78: 0 | E78: =0.14 -> 0.14 | F78: =0.14 -> 0.14 | J78: 0 | P78: 0
A79: 废漆渣稀释剂混合物 | B79: 264-013-12 | C79: 液态 | D79: 0 | J79: 0 | P79: 0
A80: 发泡废料，废胶水 | B80: 900-014-13 | C80: 半固态 | D80: 0.166 | E80: =0.1 -> 0.1 | J80: 0.266 | K80: 0.266 | P80: 0.266
A81: 废胶水 | B81: 900-014-13 | C81: 液态 | D81: 0 | J81: 0 | P81: 0
A82: 发泡废料，废胶水 | B82: 900-014-13 | C82: 固态 | D82: 0 | E82: =6.86+2.92 -> 9.78 | J82: 9.78 | K82: 9.78 | P82: 9.78
A83: 废树脂 | B83: 900-015-13 | C83: 固态 | D83: 16.9 | E83: =8.62 -> 8.62 | F83: =6.9+10 -> 16.9 | J83: 8.62 | K83: 8.62 | P83: 8.62
A84: 废树脂 | B84: 900-015-13 | C84: 半固态 | D84: 0 | J84: 0 | P84: 0
A85: 有机树脂废物 | B85: 900-016-13 | C85: 半固态 | D85: 8.02 | F85: =4.45 -> 4.45 | J85: 3.57 | L85: 3.57 | P85: 3.57
A86: 树脂胶 | B86: 265-101-13 | C86: 固态 | D86: 0 | E86: =1.02+12.712+23.24 -> 36.972 | F86: =1.02 -> 1.02 | J86: 35.952 | K86: 35.952 | P86: 35.952
A87: 不合格有机树脂 | B87: 265-101-13 | C87: 半固态 | D87: 0 | J87: 0 | P87: 0
A88: 含盐废水 | B88: 265-103-13 | C88: 液态 | D88: 0 | J88: 0 | P88: 0
A89: 釜残与滤渣 | B89: 265-103-13 | C89: 半固态 | D89: 0 | J89: 0 | P89: 0
A90: 产品水解物、氯化镁盐 | B90: 265-103-13 | C90: 固态 | D90: 0 | J90: 0 | P90: 0
A91: 污泥 | B91: 265-104-13 | C91: 半固态 | D91: 0 | J91: 0 | P91: 0
A92: 污水处理站污泥 | B92: 265-104-13 | C92: 固态 | D92: 0 | J92: 0 | P92: 0
A93: 印刷版 | B93: 231-002-16 | C93: 固态 | D93: 0 | J93: 0 | P93: 0
A94: 废显影液 | B94: 900-019-16 | C94: 液态 | D94: 0.1 | F94: =0.1 -> 0.1 | J94: 0 | P94: 0
A95: 废显影液 | B95: 398-001-16 | C95: 液态 | D95: 0 | J95: 0 | P95: 0
A96: 助镀再生废渣 | B96: 336-051-17 | C96: 固态 | D96: 0 | J96: 0 | P96: 0
A97: 含铬污泥 | B97: 336-060-17 | C97: 固态 | D97: 0 | J97: 0 | P97: 0
A98: 镀铜溶液 | B98: 336-062-17 | C98: 液态 | D98: 0 | J98: 0 | P98: 0
A99: 含铜污泥 | B99: 336-062-17 | C99: 固态 | D99: 0 | J99: 0 | P99: 0
A100: 污泥 | B100: 336-053-17 | C100: 固态 | D100: 0 | J100: 0 | P100: 0
A101: 电镀污泥 | B101: 336-063-17 | C101: 半固态 | D101: 0 | J101: 0 | P101: 0
A102: 电镀污泥 | B102: 336-063-17 | C102: 固态 | D102: 0 | J102: 0 | P102: 0
A103: 磷化污泥 | B103: 336-064-17 | C103: 固态 | D103: 0 | J103: 0 | P103: 0
A104: 金属表面处理污泥 | B104: 336-064-17 | C104: 半固态 | D104: 0 | J104: 0 | P104: 0
A105: 金属表面处理污泥 | B105: 336-064-17 | C105: 液态 | D105: 1.78 | E105: =21.55+10.5 -> 32.05 | J105: 33.83 | L105: 33.83 | P105: 33.83
A106: 污泥 | B106: 336-069-17 | C106: 半固态 | D106: 0 | J106: 0 | P106: 0
B107: 336-069-17 | C107: 液态 | D107: 0 | J107: 0 | P107: 0
A108: 污泥 | B108: 336-069-17 | C108: 固态 | D108: 0 | J108: 0 | P108: 0
A109: 废UV灯管 | B109: 900-023-29 | C109: 固态 | D109: 0 | J109: 0 | P109: 0
A110: 废碱液 | B110: 251-015-35 | C110: 液态 | D110: 12.86 | J110: 12.86 | L110: 12.86 | P110: 12.86
A111: 废碱泥 | B111: 251-015-35 | C111: 半固态 | D111: 0 | E111: =23.26+25.5 -> 48.76 | J111: 48.76 | L111: 48.76 | P111: 48.76
A112: 片碱袋 | B112: 900-399-35 | C112: 固态 | D112: 0 | J112: 0 | P112: 0
A113: 清洁剂 | B113: 900-399-35 | C113: 液态 | D113: 0 | J113: 0 | P113: 0
A114: 废硫氢化钠残渣 | B114: 900-399-35 | C114: 半固态 | D114: 0 | J114: 0 | P114: 0
A115: 废碱液 | B115: 900-352-35 | C115: 液态 | D115: 117.19 | F115: =17.7+14+5 -> 36.7 | J115: 80.49 | K115: 19.08 | L115: 61.41 | P115: 80.49
A116: 废碱液 | B116: 900-354-35 | C116: 液态 | D116: 0 | J116: 0 | P116: 0
A117: 含酚废水 | B117: 261-070-39 | C117: 液态 | D117: 143.56 | J117: 143.56 | N117: 143.56 | P117: 143.56
A118: 废活性炭 | B118: 261-071-39 | C118: 固态 | D118: 0 | J118: 0 | P118: 0
A119: 污泥 | B119: 261-084-45 | C119: 固态 | D119: 0 | E119: =23 -> 23 | J119: 23 | L119: 23 | P119: 23
A120: 含油废物 | B120: 900-041-49 | C120: 固态 | D120: 699.2444 | E120: =10.26093+6.03+27.69+5.0329+54.94314+22.73+14.67+81.498+5.66+19.08+27.76+12.15+8.12+13.635+14.32+38.38+20.35+16.0055 -> 398.31547 | F120: =60.39+139.222+55.48514+34.58+30 -> 319.67714 | H120: =3.005+5.64+12.6639 -> 21.3089 | J120: 756.57383 | K120: =649.65333+2.35-400 -> 252.00333 | L120: =104.5705-50 -> 54.5705 | O120: =50+400 -> 450 | P120: 756.57383
A121: 含有或沾染危险废物的废弃物 | B121: 900-041-49 | C121: 半固态 | D121: 0 | J121: 0 | P121: 0
A122: 防腐剂 | B122: 900-041-49 | C122: 液态 | D122: 0 | J122: 0 | P122: 0
A123: 废酸碱袋 | B123: 900-042-49 | C123: 固态 | D123: 0 | E123: =0.969+0.715 -> 1.684 | F123: =0.969 -> 0.969 | J123: 0.715 | K123: 0.715 | P123: 0.715
A124: 污泥 | B124: 772-006-49 | C124: 固态 | D124: 21 | E124: =1.73714+17.12 -> 18.85714 | F124: =21 -> 21 | J124: 18.85714 | K124: 1.73714 | L124: 17.12 | P124: 18.85714
A125: 污泥 | B125: 772-006-49 | C125: 半固态 | D125: 0 | E125: =3 -> 3 | J125: 3 | L125: 3 | P125: 3
A126: 废活性炭 | B126: 900-039-49 | C126: 固态 | D126: 12.758 | E126: =0.42+0.08+0.309+1.71213+5.72+0.72+6.921 -> 15.88213 | F126: =3.25+2.26+0.389+14.67213 -> 20.57113 | J126: 8.069 | L126: 8.069 | P126: 8.069
A127: 废水污泥 | B127: 900-046-49 | C127: 固态 | D127: 0 | J127: 0 | P127: 0
A128: 污泥 | B128: 900-046-49 | C128: 半固态 | D128: 0 | J128: 0 | P128: 0
A129: 过期化学药品 | B129: 900-047-49 | C129: 固态 | D129: 0.289 | E129: =0.13494+0.0562 -> 0.19114 | F129: =0.13494 -> 0.13494 | J129: 0.3452 | L129: 0.3452 | P129: 0.3452
A130: 乙腈、异丙酮、废液 | B130: 900-047-49 | C130: 液态 | D130: 39.46408 | E130: =2.46104+3.22649+7.22+6.8179+5.45604+0.84+0.16+0.5+5.438+0.8+4.75+5.98 -> 43.64947 | F130: =5.06138+0.39604+0.044+0.14249 -> 5.64391 | J130: 77.46964 | L130: 77.46964 | P130: 77.46964
A131: 过期药品、剧毒品 | B131: 900-999-49 | C131: 固态 | D131: 0 | J131: 0 | P131: 0
A132: 过期面膜原料、残液 | B132: 900-999-49 | C132: 液态 | D132: 16.8 | J132: =D132+E132-F132-G132-H132-I132 -> 16.8 | K132: 1.996 | L132: 14.804 | P132: =K132+L132+M132+N132+O132 -> 16.8
A133: 废催化剂 | B133: 261-152-50 | C133: 固态 | D133: 0 | J133: 0 | P133: =K133+L133+M133+N133+O133 -> 0
A134: 小计： | D134: =SUM(D4:D133) -> 9065.03011 | E134: =SUM(E4:E133) -> 1287.27693 | F134: 638.13451 | G134: 0 | H134: 51.7029 | I134: 1891.42 | J134: 7771.04963 | K134: =SUM(K4:K133) -> 913.01347 | L134: 1499.23634 | M134: 478.981 | N134: 4429.81882 | O134: 450 | P134: 7771.04963
A135: 合计： | F135: =F134+G134+H134+I134 -> 2581.25741
